[Event "Late-Titled-Tuesday-Blitz-March-26-2024"]
[Site "Chess.com"]
[Date "2024.03.26"]
[Round "6"]
[White "dropstoneDP"]
[Black "MyDream003"]
[Result "1-0"]
[WhiteElo "3003"]
[BlackElo "2790"]
[TimeControl "180+1"]
[EndTime "15:08:00 PDT"]
[Termination "dropstoneDP won by resignation"]

1. e4 {[%clk 0:03:00.9]} 1... e5 {[%clk 0:02:59.6]} 2. Nf3 {[%clk 0:03:00.5]}
2... Nc6 {[%clk 0:02:59.8]} 3. Bc4 {[%clk 0:02:59.2]} 3... Bc5 {[%clk
0:02:59.4]} 4. d3 {[%clk 0:02:53.6]} 4... Nf6 {[%clk 0:02:59.7]} 5. O-O {[%clk
0:02:51.2]} 5... h6 {[%clk 0:02:58.9]} 6. c3 {[%clk 0:02:50.5]} 6... d6 {[%clk
0:02:59.2]} 7. Re1 {[%clk 0:02:50.2]} 7... O-O {[%clk 0:02:59.1]} 8. a4 {[%clk
0:02:42.8]} 8... a5 {[%clk 0:02:58]} 9. h3 {[%clk 0:02:39.5]} 9... Be6 {[%clk
0:02:57.9]} 10. Nbd2 {[%clk 0:02:38.3]} 10... Re8 {[%clk 0:02:52]} 11. Bb5
{[%clk 0:02:37.3]} 11... Bd7 {[%clk 0:02:52.4]} 12. Nf1 {[%clk 0:02:35.5]} 12...
Bb6 {[%clk 0:02:47.7]} 13. Be3 {[%clk 0:02:33.4]} 13... Bxe3 {[%clk 0:02:46.8]}
14. Rxe3 {[%clk 0:02:32.6]} 14... Ne7 {[%clk 0:02:45.7]} 15. Bxd7 {[%clk
0:02:32.5]} 15... Qxd7 {[%clk 0:02:46.6]} 16. Ng3 {[%clk 0:02:30.6]} 16... Ng6
{[%clk 0:02:41.1]} 17. d4 {[%clk 0:02:27.6]} 17... Rad8 {[%clk 0:02:20.7]} 18.
Qb3 {[%clk 0:02:26.8]} 18... b6 {[%clk 0:02:20.4]} 19. Rd1 {[%clk 0:02:25.7]}
19... Qc6 {[%clk 0:02:14.4]} 20. Qb5 {[%clk 0:02:22.3]} 20... Qxb5 {[%clk
0:02:10.9]} 21. axb5 {[%clk 0:02:23.2]} 21... Kf8 {[%clk 0:01:44.9]} 22. c4
{[%clk 0:02:15.6]} 22... Nd7 {[%clk 0:01:39.3]} 23. b3 {[%clk 0:02:08.3]} 23...
f6 {[%clk 0:01:29.9]} 24. Nf5 {[%clk 0:02:06.2]} 24... Ne7 {[%clk 0:01:28.7]}
25. Ng3 {[%clk 0:01:49.9]} 25... Kf7 {[%clk 0:01:25.6]} 26. Ree1 {[%clk
0:01:49.5]} 26... Ra8 {[%clk 0:01:15.7]} 27. Ra1 {[%clk 0:01:45.6]} 27... Ng6
{[%clk 0:01:07.8]} 28. Nf5 {[%clk 0:01:43.8]} 28... Ne7 {[%clk 0:01:07.3]} 29.
Ne3 {[%clk 0:01:43.3]} 29... exd4 {[%clk 0:00:55.7]} 30. Nxd4 {[%clk 0:01:44.2]}
30... Nc5 {[%clk 0:00:56.3]} 31. f3 {[%clk 0:01:41.2]} 31... Ne6 {[%clk
0:00:43.1]} 32. Ne2 {[%clk 0:01:33.3]} 32... Nc5 {[%clk 0:00:43.1]} 33. Ra3
{[%clk 0:01:22.5]} 33... Nd3 {[%clk 0:00:19.1]} 34. Rd1 {[%clk 0:01:22]} 34...
Nc5 {[%clk 0:00:15.7]} 35. Nc3 {[%clk 0:01:22.1]} 35... Rac8 {[%clk 0:00:15.3]}
36. Kf2 {[%clk 0:01:18.4]} 36... g6 {[%clk 0:00:15.7]} 37. Ncd5 {[%clk
0:01:17.6]} 37... Nxd5 {[%clk 0:00:15.7]} 38. Nxd5 {[%clk 0:01:18.5]} 38... Ne6
{[%clk 0:00:14.6]} 39. b4 {[%clk 0:01:15.9]} 39... axb4 {[%clk 0:00:14.2]} 40.
Nxb4 {[%clk 0:01:16.8]} 40... Ra8 {[%clk 0:00:14.5]} 41. Rda1 {[%clk 0:01:16]}
41... Rxa3 {[%clk 0:00:14.8]} 42. Rxa3 {[%clk 0:01:16.9]} 42... Re7 {[%clk
0:00:07.8]} 43. Nd5 {[%clk 0:01:15.6]} 43... Rd7 {[%clk 0:00:07.8]} 44. Ra8
{[%clk 0:01:15.2]} 44... Kg7 {[%clk 0:00:03.2]} 45. Ke3 {[%clk 0:01:15.4]} 45...
Kf7 {[%clk 0:00:02.7]} 46. f4 {[%clk 0:01:15.6]} 46... f5 {[%clk 0:00:02.6]} 47.
exf5 {[%clk 0:01:15.8]} 47... gxf5 {[%clk 0:00:03.5]} 48. g4 {[%clk 0:01:16.5]}
48... fxg4 {[%clk 0:00:03.7]} 49. hxg4 {[%clk 0:01:17.4]} 49... Nc5 {[%clk
0:00:04.1]} 50. f5 {[%clk 0:01:17.4]} 50... Kg7 {[%clk 0:00:04]} 51. Rc8 {[%clk
0:01:14.4]} 51... Kf7 {[%clk 0:00:03.5]} 52. Kd4 {[%clk 0:00:54.4]} 52... Nb3+
{[%clk 0:00:03.1]} 53. Kd3 {[%clk 0:00:52.6]} 53... Nc5+ {[%clk 0:00:04]} 54.
Ke3 {[%clk 0:00:53.2]} 54... Kg7 {[%clk 0:00:03.3]} 55. Rxc7 {[%clk 0:00:47.8]}
55... Rxc7 {[%clk 0:00:03.4]} 56. Nxc7 {[%clk 0:00:48.7]} 56... Kf6 {[%clk
0:00:04]} 57. Nd5+ {[%clk 0:00:48.8]} 57... Kg5 {[%clk 0:00:04.5]} 58. Nxb6
{[%clk 0:00:48.7]} 58... Kxg4 {[%clk 0:00:04.3]} 59. f6 {[%clk 0:00:49.1]} 59...
Kf5 {[%clk 0:00:04.8]} 60. f7 {[%clk 0:00:49.3]} 60... Ne6 {[%clk 0:00:05]} 61.
Nd7 {[%clk 0:00:49.9]} 61... h5 {[%clk 0:00:04.4]} 62. b6 {[%clk 0:00:50.3]}
62... h4 {[%clk 0:00:02.1]} 63. b7 {[%clk 0:00:50.9]} 63... h3 {[%clk 0:00:02]}
64. b8=Q {[%clk 0:00:51.4]} 1-0

[Event "Late-Titled-Tuesday-Blitz-March-26-2024"]
[Site "Chess.com"]
[Date "2024.03.26"]
[Round "6"]
[White "thesupera12"]
[Black "SahibSinghKnight"]
[Result "1/2-1/2"]
[WhiteElo "2432"]
[BlackElo "2576"]
[TimeControl "180+1"]
[EndTime "15:08:01 PDT"]
[Termination "Game drawn - insufficient material"]

1. d4 {[%clk 0:03:00.9]} 1... d5 {[%clk 0:02:58.6]} 2. Bg5 {[%clk 0:03:00.7]}
2... c5 {[%clk 0:02:51.4]} 3. dxc5 {[%clk 0:02:58.3]} 3... f6 {[%clk 0:02:37]}
4. Bh4 {[%clk 0:02:53.5]} 4... e5 {[%clk 0:02:36.9]} 5. e4 {[%clk 0:02:53.4]}
5... Be6 {[%clk 0:02:26.2]} 6. exd5 {[%clk 0:02:51.7]} 6... Qxd5 {[%clk
0:02:24.9]} 7. Qxd5 {[%clk 0:02:50.9]} 7... Bxd5 {[%clk 0:02:25.8]} 8. Nc3
{[%clk 0:02:50.5]} 8... Bc6 {[%clk 0:02:25.8]} 9. b4 {[%clk 0:02:48.7]} 9... a6
{[%clk 0:02:15.8]} 10. f3 {[%clk 0:02:40.9]} 10... Nd7 {[%clk 0:02:09.2]} 11.
Bf2 {[%clk 0:02:39]} 11... b6 {[%clk 0:01:39.2]} 12. b5 {[%clk 0:02:34.2]} 12...
axb5 {[%clk 0:01:38.7]} 13. Bxb5 {[%clk 0:02:34.5]} 13... Rc8 {[%clk 0:01:29.8]}
14. Nge2 {[%clk 0:02:01.6]} 14... Bxc5 {[%clk 0:01:23.7]} 15. O-O {[%clk
0:01:54.8]} 15... Bxf2+ {[%clk 0:01:18.3]} 16. Kxf2 {[%clk 0:01:55.7]} 16...
Bxb5 {[%clk 0:01:19.1]} 17. Nxb5 {[%clk 0:01:53.9]} 17... Rxc2 {[%clk
0:01:18.7]} 18. Rfc1 {[%clk 0:01:51]} 18... Rc5 {[%clk 0:01:14.2]} 19. Nd6+
{[%clk 0:01:47.6]} 19... Ke7 {[%clk 0:01:00.5]} 20. Ne4 {[%clk 0:01:46.4]} 20...
Rxc1 {[%clk 0:00:54.5]} 21. Rxc1 {[%clk 0:01:44.4]} 21... f5 {[%clk 0:00:48.8]}
22. N4c3 {[%clk 0:01:36.7]} 22... Ngf6 {[%clk 0:00:48]} 23. Rb1 {[%clk
0:01:32.2]} 23... Ra8 {[%clk 0:00:46.6]} 24. Rb5 {[%clk 0:01:28.2]} 24... Ra5
{[%clk 0:00:40.6]} 25. Rb4 {[%clk 0:01:25.9]} 25... Nd5 {[%clk 0:00:35.9]} 26.
Nxd5+ {[%clk 0:01:10.8]} 26... Rxd5 {[%clk 0:00:36.8]} 27. Nc3 {[%clk
0:01:11.3]} 27... Rd2+ {[%clk 0:00:35.7]} 28. Kg3 {[%clk 0:01:11.7]} 28... Kd6
{[%clk 0:00:16.5]} 29. a4 {[%clk 0:01:09]} 29... Kc6 {[%clk 0:00:15.5]} 30. Kh3
{[%clk 0:01:06]} 30... Rd4 {[%clk 0:00:15]} 31. Rb2 {[%clk 0:01:04.1]} 31... Nc5
{[%clk 0:00:15.1]} 32. Ra2 {[%clk 0:00:59.5]} 32... Rc4 {[%clk 0:00:15.2]} 33.
Nd1 {[%clk 0:00:54.6]} 33... Rxa4 {[%clk 0:00:14.6]} 34. Re2 {[%clk 0:00:55.4]}
34... Kd6 {[%clk 0:00:12.8]} 35. Nc3 {[%clk 0:00:54.6]} 35... Rb4 {[%clk
0:00:12.4]} 36. Na2 {[%clk 0:00:53.5]} 36... Rb3 {[%clk 0:00:11.7]} 37. Nc1
{[%clk 0:00:54.3]} 37... Rc3 {[%clk 0:00:11.6]} 38. Na2 {[%clk 0:00:54.8]} 38...
Ra3 {[%clk 0:00:11.6]} 39. Nb4 {[%clk 0:00:54.1]} 39... e4 {[%clk 0:00:11.7]}
40. Kg3 {[%clk 0:00:49.1]} 40... exf3 {[%clk 0:00:07.4]} 41. gxf3 {[%clk
0:00:50]} 41... Rb3 {[%clk 0:00:07.8]} 42. Na2 {[%clk 0:00:47.9]} 42... Ne6
{[%clk 0:00:07.5]} 43. Nc1 {[%clk 0:00:47.6]} 43... Rc3 {[%clk 0:00:07.3]} 44.
Na2 {[%clk 0:00:47.6]} 44... Ra3 {[%clk 0:00:07]} 45. Nb4 {[%clk 0:00:46.7]}
45... Nc5 {[%clk 0:00:03]} 46. Rd2+ {[%clk 0:00:45.6]} 46... Ke6 {[%clk
0:00:03.1]} 47. Nc6 {[%clk 0:00:45.5]} 47... Rb3 {[%clk 0:00:04]} 48. Nd4+
{[%clk 0:00:45.6]} 48... Ke5 {[%clk 0:00:04.2]} 49. Nxb3 {[%clk 0:00:46.5]}
49... Nxb3 {[%clk 0:00:04.7]} 50. Rb2 {[%clk 0:00:46.8]} 50... Nc5 {[%clk
0:00:05]} 51. Rxb6 {[%clk 0:00:47.3]} 51... Ne6 {[%clk 0:00:05.9]} 52. Rb7
{[%clk 0:00:47.1]} 52... Kf6 {[%clk 0:00:06.1]} 53. Ra7 {[%clk 0:00:47.5]} 53...
h6 {[%clk 0:00:05.6]} 54. h4 {[%clk 0:00:46.3]} 54... g5 {[%clk 0:00:05.6]} 55.
hxg5+ {[%clk 0:00:47.2]} 55... hxg5 {[%clk 0:00:06.5]} 56. Ra6 {[%clk
0:00:47.8]} 56... Ke5 {[%clk 0:00:06.8]} 57. Ra5+ {[%clk 0:00:47.3]} 57... Kf6
{[%clk 0:00:07.1]} 58. Kf2 {[%clk 0:00:48.2]} 58... Nf4 {[%clk 0:00:06.8]} 59.
Ke3 {[%clk 0:00:47.9]} 59... Ne6 {[%clk 0:00:07.2]} 60. Rb5 {[%clk 0:00:48]}
60... g4 {[%clk 0:00:07.5]} 61. fxg4 {[%clk 0:00:48.2]} 61... fxg4 {[%clk
0:00:08.4]} 62. Kf2 {[%clk 0:00:48]} 62... Nd4 {[%clk 0:00:07.1]} 63. Rd5 {[%clk
0:00:46.9]} 63... Nf5 {[%clk 0:00:06.7]} 64. Kg2 {[%clk 0:00:46.3]} 64... Ne3+
{[%clk 0:00:06.6]} 65. Kg3 {[%clk 0:00:47.1]} 65... Nxd5 {[%clk 0:00:06.5]} 66.
Kxg4 {[%clk 0:00:48]} 1/2-1/2

[Event "Late-Titled-Tuesday-Blitz-March-26-2024"]
[Site "Chess.com"]
[Date "2024.03.26"]
[Round "6"]
[White "akanga001"]
[Black "titomagno_64"]
[Result "0-1"]
[WhiteElo "2084"]
[BlackElo "2306"]
[TimeControl "180+1"]
[EndTime "15:08:01 PDT"]
[Termination "titomagno_64 won by resignation"]

1. d4 {[%clk 0:03:00.9]} 1... d5 {[%clk 0:02:59]} 2. Nf3 {[%clk 0:03:00.9]} 2...
Nc6 {[%clk 0:02:59.1]} 3. Bf4 {[%clk 0:02:57.8]} 3... Nf6 {[%clk 0:02:58.7]} 4.
e3 {[%clk 0:02:56.3]} 4... Nh5 {[%clk 0:02:51.8]} 5. Be5 {[%clk 0:02:51]} 5...
Nxe5 {[%clk 0:02:36.8]} 6. dxe5 {[%clk 0:02:49.6]} 6... g6 {[%clk 0:02:34.8]} 7.
c4 {[%clk 0:02:46.6]} 7... e6 {[%clk 0:02:25.6]} 8. Nbd2 {[%clk 0:02:38]} 8...
Be7 {[%clk 0:02:19.3]} 9. Qc2 {[%clk 0:02:36.9]} 9... c6 {[%clk 0:02:15.5]} 10.
Bd3 {[%clk 0:02:31.4]} 10... O-O {[%clk 0:02:09.6]} 11. O-O {[%clk 0:02:28.7]}
11... b6 {[%clk 0:02:08]} 12. Rfd1 {[%clk 0:02:19]} 12... Bb7 {[%clk 0:02:07.6]}
13. Rac1 {[%clk 0:02:17.5]} 13... Ng7 {[%clk 0:01:52.7]} 14. cxd5 {[%clk
0:02:13.9]} 14... exd5 {[%clk 0:01:53.6]} 15. Bf1 {[%clk 0:02:09.8]} 15... Qc8
{[%clk 0:01:34.6]} 16. g3 {[%clk 0:02:08.8]} 16... Ba6 {[%clk 0:01:16]} 17. Bg2
{[%clk 0:02:07]} 17... Bb7 {[%clk 0:01:15.7]} 18. Nd4 {[%clk 0:02:03.7]} 18...
c5 {[%clk 0:01:10.7]} 19. Nb5 {[%clk 0:01:59.1]} 19... a6 {[%clk 0:01:05.7]} 20.
Nd6 {[%clk 0:01:49.5]} 20... Bxd6 {[%clk 0:01:05.7]} 21. exd6 {[%clk 0:01:50.4]}
21... Nf5 {[%clk 0:01:01.7]} 22. e4 {[%clk 0:01:48.1]} 22... Nd4 {[%clk
0:01:00.2]} 23. Qd3 {[%clk 0:01:46.2]} 23... dxe4 {[%clk 0:00:56.3]} 24. Nxe4
{[%clk 0:01:45.7]} 24... Bxe4 {[%clk 0:00:47.9]} 25. Bxe4 {[%clk 0:01:41.9]}
25... Ra7 {[%clk 0:00:47.4]} 26. b4 {[%clk 0:01:39]} 26... Rd7 {[%clk
0:00:35.7]} 27. bxc5 {[%clk 0:01:37.1]} 27... bxc5 {[%clk 0:00:36.6]} 28. Qe3
{[%clk 0:01:26]} 28... Rxd6 {[%clk 0:00:29.9]} 29. Bg2 {[%clk 0:01:08.8]} 29...
Re6 {[%clk 0:00:21.1]} 30. Qd3 {[%clk 0:00:42.6]} 30... Ne2+ {[%clk 0:00:20.1]}
31. Kh1 {[%clk 0:00:41.4]} 31... Nxc1 {[%clk 0:00:20.5]} 32. Rxc1 {[%clk
0:00:39.4]} 32... c4 {[%clk 0:00:20]} 33. Rxc4 {[%clk 0:00:28.8]} 33... Re1+
{[%clk 0:00:18.7]} 34. Bf1 {[%clk 0:00:28.6]} 34... Qb7+ {[%clk 0:00:16.9]} 35.
Kg1 {[%clk 0:00:28.6]} 35... Rfe8 {[%clk 0:00:14.8]} 36. Rc2 {[%clk 0:00:20.5]}
36... Qb1 {[%clk 0:00:14]} 37. Rc3 {[%clk 0:00:12.9]} 37... Qxd3 {[%clk
0:00:10]} 38. Rxd3 {[%clk 0:00:13.8]} 38... Ra1 {[%clk 0:00:10.4]} 39. Kg2
{[%clk 0:00:14.6]} 39... Rxa2 {[%clk 0:00:10.1]} 40. Rf3 {[%clk 0:00:13.1]}
40... Re7 {[%clk 0:00:08]} 41. Bc4 {[%clk 0:00:13.5]} 41... Ra4 {[%clk
0:00:07.2]} 42. Bd5 {[%clk 0:00:13.5]} 42... a5 {[%clk 0:00:06.8]} 43. Bc6
{[%clk 0:00:13.4]} 43... Ra1 {[%clk 0:00:06.2]} 44. Bd5 {[%clk 0:00:13.5]} 44...
Kg7 {[%clk 0:00:06.7]} 45. Bc4 {[%clk 0:00:13.1]} 45... a4 {[%clk 0:00:06.7]}
46. Bd5 {[%clk 0:00:12.7]} 46... a3 {[%clk 0:00:06.7]} 47. Rd3 {[%clk
0:00:12.1]} 47... Rd7 {[%clk 0:00:06.7]} 48. f4 {[%clk 0:00:11.5]} 48... a2
{[%clk 0:00:06.6]} 49. Kf3 {[%clk 0:00:12.4]} 49... Rxd5 {[%clk 0:00:05.4]} 50.
Ke4 {[%clk 0:00:13.3]} 50... Rxd3 {[%clk 0:00:05]} 51. Kxd3 {[%clk 0:00:13]}
51... Rd1+ {[%clk 0:00:05.9]} 0-1

[Event "Late-Titled-Tuesday-Blitz-March-26-2024"]
[Site "Chess.com"]
[Date "2024.03.26"]
[Round "6"]
[White "elcala"]
[Black "dealshark"]
[Result "0-1"]
[WhiteElo "1764"]
[BlackElo "2277"]
[TimeControl "180+1"]
[EndTime "15:08:03 PDT"]
[Termination "dealshark won by checkmate"]

1. d4 {[%clk 0:03:00.9]} 1... d5 {[%clk 0:02:40.3]} 2. Nf3 {[%clk 0:02:59.4]}
2... e6 {[%clk 0:02:40.2]} 3. Bf4 {[%clk 0:02:56.4]} 3... Nf6 {[%clk 0:02:40.2]}
4. e3 {[%clk 0:02:54.6]} 4... c5 {[%clk 0:02:40.4]} 5. c3 {[%clk 0:02:53.8]}
5... Bd6 {[%clk 0:02:40.4]} 6. Ne5 {[%clk 0:02:50.4]} 6... O-O {[%clk
0:02:37.5]} 7. Nd2 {[%clk 0:02:50.7]} 7... cxd4 {[%clk 0:02:33.2]} 8. exd4
{[%clk 0:02:47.1]} 8... Qb6 {[%clk 0:02:31.7]} 9. Qb3 {[%clk 0:02:43.3]} 9...
Qxb3 {[%clk 0:02:26.9]} 10. axb3 {[%clk 0:02:37.7]} 10... Bxe5 {[%clk
0:02:27.5]} 11. Bxe5 {[%clk 0:02:34.7]} 11... Nc6 {[%clk 0:02:25.3]} 12. Bxf6
{[%clk 0:02:34.6]} 12... gxf6 {[%clk 0:02:25.5]} 13. Bd3 {[%clk 0:02:31.9]}
13... a5 {[%clk 0:02:22.3]} 14. O-O {[%clk 0:02:26.5]} 14... b6 {[%clk
0:02:21.5]} 15. Bb5 {[%clk 0:02:24.6]} 15... Bb7 {[%clk 0:02:19.3]} 16. f4
{[%clk 0:02:23.6]} 16... f5 {[%clk 0:02:18]} 17. Rf3 {[%clk 0:02:20.4]} 17...
Ne7 {[%clk 0:02:12.1]} 18. Nf1 {[%clk 0:02:06.4]} 18... Rac8 {[%clk 0:02:11.5]}
19. Ng3 {[%clk 0:01:59.9]} 19... Ng6 {[%clk 0:02:09.4]} 20. Nh5 {[%clk
0:01:56.5]} 20... Kh8 {[%clk 0:02:06.3]} 21. Nf6 {[%clk 0:01:53]} 21... Bc6
{[%clk 0:01:26]} 22. Rh3 {[%clk 0:01:50]} 22... Kg7 {[%clk 0:01:23.2]} 23. Rxh7+
{[%clk 0:01:46.6]} 23... Kxf6 {[%clk 0:01:21.7]} 24. Bf1 {[%clk 0:01:14.4]}
24... Rh8 {[%clk 0:01:19.3]} 25. Rxh8 {[%clk 0:01:14.2]} 25... Rxh8 {[%clk
0:01:19]} 26. g3 {[%clk 0:01:08.9]} 26... Ne7 {[%clk 0:01:10.4]} 27. b4 {[%clk
0:01:01.2]} 27... Ra8 {[%clk 0:01:08.3]} 28. b5 {[%clk 0:00:58.6]} 28... Bd7
{[%clk 0:01:05.9]} 29. b3 {[%clk 0:00:55.3]} 29... Nc8 {[%clk 0:01:05.2]} 30. c4
{[%clk 0:00:55.1]} 30... Nd6 {[%clk 0:00:57.6]} 31. Ra4 {[%clk 0:00:49.8]} 31...
Rc8 {[%clk 0:00:51.5]} 32. Kf2 {[%clk 0:00:45.5]} 32... Ne4+ {[%clk 0:00:49]}
33. Ke3 {[%clk 0:00:44.3]} 33... Ke7 {[%clk 0:00:39.4]} 34. Bg2 {[%clk
0:00:22.2]} 34... Kd6 {[%clk 0:00:33.8]} 35. Bxe4 {[%clk 0:00:21.4]} 35... fxe4
{[%clk 0:00:31.4]} 36. h4 {[%clk 0:00:18.7]} 36... f5 {[%clk 0:00:27.2]} 37. Kf2
{[%clk 0:00:12.3]} 37... Be8 {[%clk 0:00:19.9]} 38. Ke3 {[%clk 0:00:09.6]} 38...
Bh5 {[%clk 0:00:20.2]} 39. Kf2 {[%clk 0:00:09.4]} 39... Bd1 {[%clk 0:00:20.3]}
40. Ra3 {[%clk 0:00:07.1]} 40... dxc4 {[%clk 0:00:20.7]} 41. bxc4 {[%clk
0:00:07.6]} 41... Rxc4 {[%clk 0:00:21.2]} 42. h5 {[%clk 0:00:07]} 42... Bxh5
{[%clk 0:00:20.9]} 43. Ra1 {[%clk 0:00:04]} 43... Rxd4 {[%clk 0:00:20.8]} 44.
Rh1 {[%clk 0:00:04.2]} 44... Bg4 {[%clk 0:00:19.4]} 45. Rh8 {[%clk 0:00:02.4]}
45... Rb4 {[%clk 0:00:19.4]} 46. Rd8+ {[%clk 0:00:02.6]} 46... Kc5 {[%clk
0:00:19.8]} 47. Re8 {[%clk 0:00:02.3]} 47... Kxb5 {[%clk 0:00:20.2]} 48. Rxe6
{[%clk 0:00:03.2]} 48... a4 {[%clk 0:00:20.7]} 49. Re5+ {[%clk 0:00:03.5]} 49...
Kc4 {[%clk 0:00:20.6]} 50. Ke3 {[%clk 0:00:03.9]} 50... a3 {[%clk 0:00:20.9]}
51. Kd2 {[%clk 0:00:03.7]} 51... a2 {[%clk 0:00:19.5]} 52. Re8 {[%clk
0:00:04.6]} 52... a1=Q {[%clk 0:00:19.7]} 53. Rc8+ {[%clk 0:00:05.5]} 53... Kb3
{[%clk 0:00:20]} 54. Rc3+ {[%clk 0:00:04.7]} 54... Qxc3# {[%clk 0:00:19.6]} 0-1

[Event "Late-Titled-Tuesday-Blitz-March-26-2024"]
[Site "Chess.com"]
[Date "2024.03.26"]
[Round "6"]
[White "ProfessorChess101"]
[Black "Matrix3x3a"]
[Result "1/2-1/2"]
[WhiteElo "2769"]
[BlackElo "2610"]
[TimeControl "180+1"]
[EndTime "15:08:06 PDT"]
[Termination "Game drawn by repetition"]

1. d4 {[%clk 0:03:00.9]} 1... Nf6 {[%clk 0:02:59.6]} 2. c4 {[%clk 0:03:01.2]}
2... e6 {[%clk 0:02:59.7]} 3. Nc3 {[%clk 0:03:01.6]} 3... Bb4 {[%clk 0:02:58.9]}
4. e3 {[%clk 0:03:01.9]} 4... O-O {[%clk 0:02:58.2]} 5. Nf3 {[%clk 0:03:02.5]}
5... c5 {[%clk 0:02:57.5]} 6. Bd2 {[%clk 0:03:02.1]} 6... b6 {[%clk 0:02:54.2]}
7. a3 {[%clk 0:03:01.8]} 7... Bxc3 {[%clk 0:02:54.1]} 8. Bxc3 {[%clk 0:03:02.7]}
8... Ne4 {[%clk 0:02:51.6]} 9. d5 {[%clk 0:02:58.9]} 9... Nxc3 {[%clk
0:02:51.3]} 10. bxc3 {[%clk 0:02:59.8]} 10... d6 {[%clk 0:02:50.3]} 11. Bd3
{[%clk 0:02:58.2]} 11... e5 {[%clk 0:02:50.2]} 12. Nd2 {[%clk 0:02:55.6]} 12...
f5 {[%clk 0:02:44.3]} 13. O-O {[%clk 0:02:54.1]} 13... Nd7 {[%clk 0:02:42.2]}
14. f4 {[%clk 0:02:45.6]} 14... exf4 {[%clk 0:02:40]} 15. exf4 {[%clk
0:02:46.5]} 15... Nf6 {[%clk 0:02:39.4]} 16. Qc2 {[%clk 0:02:42.5]} 16... g6
{[%clk 0:02:39]} 17. Rae1 {[%clk 0:02:42.4]} 17... Bd7 {[%clk 0:02:38.5]} 18.
Nf3 {[%clk 0:02:41.4]} 18... Re8 {[%clk 0:02:37.4]} 19. Ng5 {[%clk 0:02:40.6]}
19... Qc8 {[%clk 0:02:27.1]} 20. Qd1 {[%clk 0:02:33.3]} 20... h6 {[%clk
0:02:13.8]} 21. Rxe8+ {[%clk 0:02:32.2]} 21... Qxe8 {[%clk 0:02:10.7]} 22. Re1
{[%clk 0:02:31.3]} 22... Qf8 {[%clk 0:02:00.5]} 23. Ne6 {[%clk 0:02:27.6]} 23...
Bxe6 {[%clk 0:02:00.5]} 24. dxe6 {[%clk 0:02:23.9]} 24... Qe7 {[%clk 0:01:59.2]}
25. Qa4 {[%clk 0:02:18.4]} 25... Rd8 {[%clk 0:01:57.1]} 26. Qc6 {[%clk
0:02:14.1]} 26... Kg7 {[%clk 0:01:56.2]} 27. h3 {[%clk 0:02:05.6]} 27... h5
{[%clk 0:01:55.9]} 28. a4 {[%clk 0:01:58.3]} 28... d5 {[%clk 0:01:49.7]} 29. a5
{[%clk 0:01:45.9]} 29... d4 {[%clk 0:01:38]} 30. axb6 {[%clk 0:01:36.7]} 30...
axb6 {[%clk 0:01:38.9]} 31. cxd4 {[%clk 0:01:34.4]} 31... Rxd4 {[%clk
0:01:36.1]} 32. Re3 {[%clk 0:01:20.2]} 32... Rxf4 {[%clk 0:01:24.6]} 33. Qxb6
{[%clk 0:01:19.9]} 33... h4 {[%clk 0:01:20.7]} 34. Be2 {[%clk 0:01:16.3]} 34...
Re4 {[%clk 0:01:14.3]} 35. Rxe4 {[%clk 0:01:14.1]} 35... Nxe4 {[%clk 0:01:14.3]}
36. Bf3 {[%clk 0:01:12.9]} 36... Nf6 {[%clk 0:00:46.9]} 37. Bd5 {[%clk
0:01:07.4]} 37... Nh5 {[%clk 0:00:35.3]} 38. Qb2+ {[%clk 0:01:03.7]} 38... Kh7
{[%clk 0:00:32.2]} 39. Qe5 {[%clk 0:00:51.8]} 39... Nf6 {[%clk 0:00:30.5]} 40.
Bf3 {[%clk 0:00:46.6]} 40... Ne8 {[%clk 0:00:29.9]} 41. Kh1 {[%clk 0:00:37.9]}
41... Ng7 {[%clk 0:00:30]} 42. Bd5 {[%clk 0:00:37.5]} 42... Nh5 {[%clk
0:00:29.3]} 43. Kg1 {[%clk 0:00:32.1]} 43... Ng7 {[%clk 0:00:28.9]} 44. Kf1
{[%clk 0:00:30.6]} 44... Ne8 {[%clk 0:00:27.4]} 45. Ke2 {[%clk 0:00:24.4]} 45...
Nf6 {[%clk 0:00:25.1]} 46. Kd1 {[%clk 0:00:21.9]} 46... Ng8 {[%clk 0:00:24.3]}
47. Kc2 {[%clk 0:00:19.3]} 47... Qa7 {[%clk 0:00:24]} 48. Qb2 {[%clk 0:00:16.5]}
48... Ne7 {[%clk 0:00:22.4]} 49. Kd2 {[%clk 0:00:10.4]} 49... Qc7 {[%clk
0:00:18.7]} 50. Qf6 {[%clk 0:00:09]} 50... Qd6 {[%clk 0:00:19]} 51. Qf7+ {[%clk
0:00:07.3]} 51... Kh6 {[%clk 0:00:19.2]} 52. Qf8+ {[%clk 0:00:07.9]} 52... Kg5
{[%clk 0:00:18.8]} 53. Kc1 {[%clk 0:00:08.1]} 53... f4 {[%clk 0:00:17.3]} 54.
Kc2 {[%clk 0:00:05.2]} 54... Kh5 {[%clk 0:00:15.6]} 55. Qh8+ {[%clk 0:00:04.8]}
55... Kg5 {[%clk 0:00:15.6]} 56. Qf8 {[%clk 0:00:05.4]} 56... Kh5 {[%clk
0:00:15.3]} 57. Bf3+ {[%clk 0:00:04.9]} 57... Kg5 {[%clk 0:00:15.6]} 58. Bd5
{[%clk 0:00:05.2]} 1/2-1/2